{"text_format":"1","workbook":"xlsx","n_sheets":9,"sheets":["Using File Tab","Using Page Layout Tab","Adding Cells to Existing Printe","Applying VBA Code","Sheet1","Sheet2","Sheet3","Sheet4","Setting Print Area"],"not_rendered":{"charts":0,"images":0,"macros":1,"external_links":0,"defined_names":3,"comments":0,"pivot_tables":0},"unopened":[],"bounds":{"document_bytes":16777216,"sheet_cells":100000,"rows_first":2000,"rows_last":500,"rows_between":2000,"halvings":0,"cell_chars":16384,"cell_head_chars":4096},"cells_cut":0,"cells_raw":0,"read":"whole","date_system":"1900"}

{"sheet":"Using File Tab","index":0,"n_rows":10,"n_cols":9,"rows_kept":10,"cut":false,"hidden":false,"merged":[[1,1,1,2],[1,7,1,8]]}
[]
[null,"Using File Tab",null,null,null,null,null,"Do it Yourself"]
[]
[null,"Serial No","Products",null,null,null,null,"Serial No","Products "]
[null,1,"Chicken",null,null,null,null,null,"Shoe"]
[null,2,"Beef",null,null,null,null,null,"Mobile"]
[null,3,"Apple",null,null,null,null,null,"Laptop"]
[null,4,"Banana",null,null,null,null,null,"Perfume"]
[null,5,"Rice",null,null,null,null,null,"Mug"]
[null,6,"Juice",null,null,null,null,null,"Fan"]

{"sheet":"Using Page Layout Tab","index":1,"n_rows":13,"n_cols":9,"rows_kept":13,"cut":false,"hidden":false,"merged":[[1,1,1,2],[1,7,1,8]]}
[]
[null,"Using Page Layout Tab",null,null,null,null,null,"Do it Yourself"]
[]
[null,"Serial No","Products",null,null,null,null,"Serial No","Products "]
[null,1,"Chicken",null,null,null,null,null,"Shoe"]
[null,{"$f":"B5+1","v":2},"Beef",null,null,null,null,null,"Mobile"]
[null,{"$f":"B6+1","v":3},"Apple",null,null,null,null,null,"Laptop"]
[null,4,"Banana",null,null,null,null,null,"Perfume"]
[null,5,"Rice",null,null,null,null,null,"Mug"]
[null,6,"Juice",null,null,null,null,null,"Fan"]
[null,{"$f":"IF(ISBLANK(C11),\"\",COUNTA($C$5:C11))","v":7},"Orange"]
[null,{"$f":"IF(ISBLANK(C12),\"\",COUNTA($C$5:C12))","v":8},"Coffee"]
[null,{"$f":"IF(ISBLANK(C13),\"\",COUNTA($C$5:C13))","v":9},"Soap"]

{"sheet":"Adding Cells to Existing Printe","index":2,"n_rows":13,"n_cols":9,"rows_kept":13,"cut":false,"hidden":false,"merged":[[1,1,1,2],[1,7,1,8]]}
[]
[null,"Adding Cells to Existing Printed Area",null,null,null,null,null,"Do it Yourself"]
[]
[null,"Serial No","Products",null,null,null,null,"Serial No","Products "]
[null,{"$f":"IF(ISBLANK(C5),\"\",COUNTA($C$5:C5))","v":1},"Chicken",null,null,null,null,null,"Shoe"]
[null,{"$f":"IF(ISBLANK(C6),\"\",COUNTA($C$5:C6))","v":2},"Beef",null,null,null,null,null,"Mobile"]
[null,{"$f":"IF(ISBLANK(C7),\"\",COUNTA($C$5:C7))","v":3},"Apple",null,null,null,null,null,"Laptop"]
[null,{"$f":"IF(ISBLANK(C8),\"\",COUNTA($C$5:C8))","v":4},"Banana",null,null,null,null,null,"Perfume"]
[null,{"$f":"IF(ISBLANK(C9),\"\",COUNTA($C$5:C9))","v":5},"Rice",null,null,null,null,null,"Mug"]
[null,{"$f":"IF(ISBLANK(C10),\"\",COUNTA($C$5:C10))","v":6},"Juice",null,null,null,null,null,"Fan"]
[null,{"$f":"IF(ISBLANK(C11),\"\",COUNTA($C$5:C11))","v":7},"Orange"]
[null,{"$f":"IF(ISBLANK(C12),\"\",COUNTA($C$5:C12))","v":8},"Coffee"]
[null,{"$f":"IF(ISBLANK(C13),\"\",COUNTA($C$5:C13))","v":9},"Soap"]

{"sheet":"Applying VBA Code","index":3,"n_rows":10,"n_cols":9,"rows_kept":10,"cut":false,"hidden":false,"merged":[[1,1,1,2],[1,7,1,8]]}
[]
[null,"Applying VBA Code",null,null,null,null,null,"Do it Yourself"]
[]
[null,"Serial No","Products",null,null,null,null,"Serial No","Products "]
[null,{"$f":"ROW()-4","v":1},"Chicken",null,null,null,null,null,"Shoe"]
[null,{"$f":"ROW()-4","v":2},"Beef",null,null,null,null,null,"Mobile"]
[null,3,"Apple",null,null,null,null,null,"Laptop"]
[null,4,"Banana",null,null,null,null,null,"Perfume"]
[null,5,"Rice",null,null,null,null,null,"Mug"]
[null,6,"Juice",null,null,null,null,null,"Fan"]

{"sheet":"Sheet1","index":4,"n_rows":9,"n_cols":2,"rows_kept":9,"cut":false,"hidden":false,"merged":[[0,0,0,1]]}
["Applying VBA Code"]
[]
["Serial No","Products"]
[1,"Chicken"]
[2,"Beef"]
[3,"Apple"]
[4,"Banana"]
[5,"Rice"]
[6,"Juice"]

{"sheet":"Sheet2","index":5,"n_rows":9,"n_cols":2,"rows_kept":9,"cut":false,"hidden":false,"merged":[[0,0,0,1]]}
["Applying VBA Code"]
[]
["Serial No","Products"]
[1,"Chicken"]
[2,"Beef"]
[3,"Apple"]
[4,"Banana"]
[5,"Rice"]
[6,"Juice"]

{"sheet":"Sheet3","index":6,"n_rows":9,"n_cols":2,"rows_kept":9,"cut":false,"hidden":false,"merged":[[0,0,0,1]]}
["Applying VBA Code"]
[]
["Serial No","Products"]
[1,"Chicken"]
[2,"Beef"]
[3,"Apple"]
[4,"Banana"]
[5,"Rice"]
[6,"Juice"]

{"sheet":"Sheet4","index":7,"n_rows":9,"n_cols":2,"rows_kept":9,"cut":false,"hidden":false,"merged":[[0,0,0,1]]}
["Applying VBA Code"]
[]
["Serial No","Products"]
[1,"Chicken"]
[2,"Beef"]
[3,"Apple"]
[4,"Banana"]
[5,"Rice"]
[6,"Juice"]

{"sheet":"Setting Print Area","index":8,"n_rows":10,"n_cols":9,"rows_kept":10,"cut":false,"hidden":false,"merged":[[1,1,1,2],[1,7,1,8]]}
[]
[null,"Setting Print Area",null,null,null,null,null,"Do it Yourself"]
[]
[null,"Serial No","Products",null,null,null,null,"Serial No","Products "]
[null,{"$f":"SUBTOTAL(3,$C$5:C5)","v":1},"Chicken",null,null,null,null,null,"Shoe"]
[null,{"$f":"SUBTOTAL(3,$C$5:C6)","v":2},"Beef",null,null,null,null,null,"Mobile"]
[null,{"$f":"SUBTOTAL(3,$C$5:C7)","v":3},"Apple",null,null,null,null,null,"Laptop"]
[null,{"$f":"SUBTOTAL(3,$C$5:C8)","v":4},"Banana",null,null,null,null,null,"Perfume"]
[null,{"$f":"SUBTOTAL(3,$C$5:C9)","v":5},"Rice",null,null,null,null,null,"Mug"]
[null,{"$f":"SUBTOTAL(3,$C$5:C10)","v":6},"Juice",null,null,null,null,null,"Fan"]